bitfinex/quotes_ETHUSD_20220123
["timestamp","ask_amount","ask_price","bid_price","bid_amount"]
[1642981023683,3.996,2530.2,2528.1,0.01247759]
[1642981023983,3.996,2530.2,2528.8,0.01214391]
[1642981023984,3.6052,2530.2,2528.8,0.01214391]
[1642981024192,0.2996,2530.6,2530.0,1.3150177]
[1642981024391,0.2996,2530.6,2530.1,1.52775581]
[1642981024587,0.0001,2530.6,2530.1,2.89786641]
[1642981024888,0.0001,2530.6,2530.1,2.1961106]
[1642981025088,6.68172688,2531.8,2530.2,0.14083347]
[1642981025293,6.68172688,2532.0,2530.4,0.08235615]
[1642981025545,35.60572688,2532.2,2530.5,0.475]
[1642981025734,35.60572688,2532.2,2532.0,1.20028524]
[1642981025735,3.45,2532.1,2532.0,1.20028524]
[1642981025933,6.7,2532.1,2532.0,2.6377873]
[1642981026136,6.7,2532.1,2532.0,4.2377873]
[1642981026332,3.45,2532.1,2532.0,1.43750206]
[1642981026534,3.45,2532.1,2530.8,0.1579]
[1642981026735,3.45,2532.1,2531.5,0.6]
[1642981026934,3.45,2532.1,2530.8,0.5280106]
[1642981027136,6.71887608,2532.1,2530.8,0.3701106]
[1642981027337,6.71887608,2532.1,2530.7,0.3]
[1642981027338,0.0128169,2531.7,2530.7,0.3]
[1642981027536,0.0128169,2531.7,2530.6,0.458]
[1642981027537,0.0128169,2531.7,2530.6,0.3]
[1642981027843,0.0128169,2531.7,2531.4,1.39454626]
[1642981028737,6.71887608,2532.1,2531.4,1.39454626]
[1642981028939,3.4847,2532.1,2531.4,1.39454626]
[1642981029162,3.29136276,2532.0,2530.5,0.158]
[1642981029369,9.95964472,2532.0,2530.4,0.758]
[1642981029569,3.9972,2531.9,2530.4,1.6]
[1642981029770,3.31469868,2531.8,2530.4,0.758]
[1642981029971,3.31469868,2531.8,2530.4,1.458]
[1642981030168,3.31469868,2531.8,2530.4,1.6]
[1642981030373,3.1140224,2531.8,2531.5,1.11268733]
[1642981030574,0.16543674,2531.1,2530.4,0.6]
[1642981030772,0.16543674,2531.1,2530.4,0.3]
[1642981030971,0.16543674,2531.1,2530.2,1.758]
[1642981031372,0.16543674,2531.1,2530.4,5.0]
[1642981031573,0.16543674,2531.1,2530.5,1.0]
[1642981031772,0.16543674,2531.1,2530.9,1.41991665]
[1642981033161,0.16543674,2531.1,2530.9,2.95760855]
[1642981033567,0.16543674,2531.1,2531.0,1.0]
[1642981035971,0.16543674,2531.1,2531.0,0.3]
[1642981036171,0.16543674,2531.1,2531.0,1.0]
[1642981037374,0.16543674,2531.1,2530.9,1.41991665]
[1642981037573,0.16543674,2531.1,2530.5,1.0]
[1642981037773,0.16543674,2531.1,2530.4,5.0]
[1642981038374,0.16543674,2531.1,2530.7,1.1275087]
[1642981038673,0.16543674,2531.1,2530.9,1.45599328]
[1642981040175,0.16543674,2531.1,2530.9,1.75599328]
[1642981040415,0.16543674,2531.1,2530.9,2.05599328]
[1642981040819,0.16543674,2531.1,2530.9,1.75599328]
[1642981041215,0.16543674,2531.1,2530.9,2.05599328]
[1642981041416,0.16543674,2531.1,2530.9,1.45599328]
[1642981041618,0.16543674,2531.1,2530.4,5.0]
[1642981041619,0.16543674,2531.1,2530.5,1.0]
[1642981041822,0.16543674,2531.1,2530.4,5.0]
[1642981041823,0.02434269,2531.0,2530.4,5.0]
[1642981042019,0.06308269,2531.0,2530.4,5.0]
[1642981042217,0.03874,2531.0,2530.4,5.0]
[1642981042417,3.49201874,2531.1,2530.4,5.0]
[1642981042616,3.45327874,2531.1,2530.4,5.0]
[1642981042818,0.17757315,2531.1,2530.4,5.0]
[1642981043019,3.47443536,2531.1,2530.4,5.0]
[1642981043217,3.47443536,2531.1,2530.4,4.25531218]
[1642981043820,0.57,2531.0,2530.4,4.25531218]
[1642981044021,6.33971488,2530.9,2530.4,4.25531218]
[1642981044276,0.03876,2530.8,2530.4,4.25531218]
[1642981044477,0.03876,2530.8,2530.4,8.79e-05]
[1642981044674,7.06279703,2530.5,2530.4,8.79e-05]
[1642981044878,7.05,2530.4,2528.4,7.4408]
[1642981045076,0.9891975,2530.1,2528.4,8.03743167]
[1642981045276,4.54463196,2530.0,2529.0,1.23253322]
[1642981045476,8.27381196,2530.0,2529.0,1.23253322]
[1642981045676,8.27381196,2530.0,2529.1,1.29741203]
[1642981045879,8.23523196,2530.0,2529.1,1.29741203]
[1642981046183,3.6906,2530.0,2529.4,1.45733893]
[1642981046376,6.98748164,2530.0,2529.4,1.45733893]
[1642981046579,6.98748164,2530.0,2528.8,1.0]
[1642981046876,6.98748164,2530.0,2528.4,1.19663167]
[1642981047077,6.61648486,2530.0,2528.4,1.05463167]
[1642981047279,0.9893651,2529.7,2528.4,0.458]
[1642981047483,7.60582486,2530.0,2528.3,0.3927]
[1642981047484,7.05,2529.5,2528.3,0.3927]
[1642981047679,7.05,2529.5,2527.9,1.2491]
[1642981047680,4.1128567,2529.4,2528.4,1.11681737]
[1642981048137,0.27639993,2529.4,2528.8,1.13579016]
[1642981049136,0.27639993,2529.4,2528.5,1.0]
[1642981049338,0.27639993,2529.4,2528.7,0.3]
[1642981049537,0.27639993,2529.4,2528.0,0.01293328]
[1642981049940,0.27639993,2529.4,2528.0,0.31293328]
[1642981050240,0.27639993,2529.4,2529.2,1.40276826]
[1642981050441,0.27639993,2529.4,2528.3,0.37583676]
[1642981050640,0.27639993,2529.4,2528.3,1.458]
[1642981051246,0.158,2530.0,2528.6,0.01237971]
[1642981051450,3.7122,2530.6,2528.7,0.81791837]
[1642981051679,3.7122,2530.6,2528.8,4.49681781]
[1642981051869,3.7122,2530.6,2528.9,0.728]
[1642981052073,3.7122,2530.6,2528.9,2.028]
[1642981052274,3.7122,2530.6,2528.9,1.028]
[1642981052474,3.6622,2530.6,2529.4,1.11944295]
[1642981052676,3.6622,2530.6,2530.2,1.22168692]
[1642981052876,3.35289996,2530.7,2530.2,1.22168692]
[1642981053278,0.13819996,2530.7,2530.2,1.52168692]
[1642981053675,0.13819996,2530.7,2530.2,1.82168692]
[1642981054076,0.13819996,2530.7,2530.2,2.96242299]
[1642981054279,0.13819997,2530.8,2530.6,1.14591693]
[1642981054481,0.32343674,2531.1,2530.6,1.14591693]
[1642981054482,0.16543674,2531.1,2530.6,1.14591693]
[1642981054881,0.16543674,2531.1,2531.0,2.44802713]
[1642981055081,0.16543674,2531.1,2531.0,2.74802713]
[1642981055279,25.0,2532.2,2531.9,1.31564961]
[1642981055571,25.0,2532.2,2531.9,1.45125589]
[1642981055925,25.0,2532.2,2531.2,1.0]
[1642981056127,25.0,2532.2,2531.2,1.3]
[1642981056329,25.0,2532.2,2531.8,1.14073607]
[1642981056536,25.0,2532.2,2531.8,2.36423607]
[1642981056730,10.6958,2532.2,2531.9,0.1579]
[1642981056931,10.6958,2532.2,2532.0,0.05006249]
[1642981057127,0.158535,2532.4,2532.2,0.07829947]
[1642981057330,0.158535,2532.4,2532.2,1.4007775]
[1642981057534,0.158535,2532.4,2532.2,2.3507775]
[1642981057728,0.158535,2532.4,2532.2,2.32247803]
[1642981057933,0.13819996,2533.0,2532.2,1.32247803]
[1642981058135,0.13819996,2533.0,2532.2,1.0]
[1642981058332,0.04263176,2532.9,2532.1,0.6]
[1642981058534,0.04263176,2532.9,2532.1,0.3]
[1642981058732,0.04206334,2532.8,2532.1,0.3]
[1642981058936,0.04206334,2532.8,2531.9,1.6]
[1642981059183,0.04149491,2532.7,2531.9,0.6]
[1642981059382,0.04149491,2532.7,2532.1,1.43975047]
[1642981059583,0.04092649,2532.6,2532.1,2.03975047]
[1642981059985,0.04035807,2532.5,2532.1,2.03975047]
[1642981060786,0.04035807,2532.5,2531.8,1.0]
[1642981060986,0.04035807,2532.5,2531.6,0.2182]
[1642981061792,0.04035807,2532.5,2532.0,1.38870159]
[1642981061988,0.04035807,2532.5,2532.0,1.98870159]
[1642981063528,0.04035807,2532.5,2532.0,0.6]
[1642981063728,0.04035807,2532.5,2531.6,0.2182]
[1642981063928,0.04035807,2532.5,2531.6,1.61823214]
[1642981064131,0.04035807,2532.5,2531.7,0.3]
[1642981064730,0.04035807,2532.5,2531.6,0.5182]
[1642981064731,0.04035807,2532.5,2531.6,0.2182]
[1642981064930,0.19825807,2532.5,2531.6,0.2182]
[1642981065131,0.04035807,2532.5,2531.6,0.2182]
[1642981065932,0.04836134,2532.3,2531.6,0.2182]
[1642981066131,0.7279,2532.2,2531.6,0.2182]
[1642981066330,1.00236717,2532.1,2531.6,0.2182]
[1642981066532,0.02279242,2531.5,2530.3,0.74501103]
[1642981066770,0.02279242,2531.5,2530.7,1.23623544]
[1642981066977,0.02279242,2531.5,2530.2,0.58366588]
[1642981067172,0.16567078,2531.4,2530.2,0.58366588]
[1642981067372,1.15434508,2531.4,2530.2,0.58366588]
[1642981067668,1.15434508,2531.4,2530.1,1.47146914]
[1642981067870,1.1466743,2531.4,2530.1,1.47146914]
[1642981068069,1.1466743,2531.4,2530.4,1.20149099]
[1642981068478,0.158,2531.4,2530.9,0.57308158]
[1642981068675,0.02279242,2531.5,2530.9,0.57308158]
[1642981068676,0.1534224,2531.5,2530.9,0.57308158]
[1642981068876,0.158,2531.8,2530.9,0.57308158]
[1642981069280,0.158,2531.8,2531.1,1.28016866]
[1642981069484,0.57,2531.9,2531.1,1.28016866]
[1642981069881,0.57,2531.9,2531.1,1.58016866]
[1642981070923,0.57,2531.9,2531.1,1.28016866]
[1642981071120,0.158,2532.1,2531.1,1.58016866]
[1642981071521,0.158,2532.1,2531.1,1.88016866]
[1642981071722,0.108,2532.1,2531.1,1.88016866]
[1642981072134,0.108,2532.1,2531.6,1.106449]
[1642981072326,0.108,2532.1,2531.1,0.3]
[1642981072527,0.108,2532.1,2530.7,0.158]
[1642981072933,0.01362466,2532.0,2530.7,0.158]
[1642981073239,0.01362466,2532.0,2529.9,0.60612501]
[1642981073240,0.01221669,2531.6,2529.9,0.158]
[1642981073433,0.02600334,2531.5,2530.1,1.21526135]
[1642981073830,0.58221669,2531.6,2529.7,0.60413703]
[1642981074034,1.03381707,2531.4,2529.4,1.2905]
[1642981074294,0.57,2531.3,2530.0,1.44719953]
[1642981074890,3.8543,2531.5,2530.0,1.5172249]
[1642981075091,3.8543,2531.5,2530.1,0.158]
[1642981075292,1.1764,2531.8,2530.1,0.158]
[1642981075293,0.57,2531.9,2530.4,1.09048824]
[1642981075494,0.108,2532.1,2530.9,0.59735119]
[1642981075695,0.108,2532.1,2530.7,0.01256094]
[1642981076294,0.01205284,2532.0,2530.5,0.158]
[1642981076492,0.57,2531.9,2530.4,1.69048824]
[1642981077403,0.57,2531.9,2530.5,0.07002537]
[1642981077592,0.57,2531.9,2530.5,0.158]
[1642981078044,3.94389247,2532.1,2531.0,0.7851854]
[1642981078438,3.94389247,2532.1,2531.0,1.3851854]
[1642981079339,3.94389247,2532.1,2531.0,0.7851854]
[1642981079538,3.94389247,2532.1,2531.0,0.3]
[1642981079738,3.94389247,2532.1,2530.3,0.158]
[1642981080142,0.57,2532.0,2530.3,0.158]
[1642981080341,4.19144134,2531.9,2530.3,0.158]
[1642981080540,4.19144134,2531.9,2530.4,1.22387251]
[1642981081544,0.58284844,2532.0,2530.4,1.22387251]
[1642981081767,0.57,2532.0,2531.2,1.2495012]
[1642981081966,0.57,2532.0,2531.2,1.5495012]
[1642981082168,0.108,2532.1,2531.2,1.5495012]
[1642981082765,0.108,2532.1,2531.2,0.3]
[1642981083168,3.40843998,2532.1,2530.6,0.01280867]
[1642981083567,0.108,2532.1,2530.6,0.01280867]
[1642981083769,3.44892886,2532.1,2530.6,0.01280867]
[1642981083968,0.108,2532.1,2531.3,1.53279992]
[1642981084169,0.108,2532.1,2531.3,1.83279992]
[1642981084373,0.108,2532.1,2531.3,2.13279992]
[1642981086018,0.108,2532.1,2531.3,1.53279992]
[1642981087521,0.108,2532.1,2531.3,2.13279992]
[1642981087726,0.10668314,2532.1,2531.7,1.36400107]
[1642981087923,0.10668314,2532.1,2531.7,1.96400107]
[1642981088532,0.10668314,2532.1,2531.7,2.03420086]
[1642981088727,0.04035807,2532.5,2531.9,3.75]
[1642981088927,0.04035807,2532.5,2531.9,4.05]
[1642981089178,0.04035807,2532.5,2532.0,1.0]
[1642981089373,0.04035807,2532.5,2532.2,1.54822566]
[1642981089574,0.04035807,2532.5,2532.2,1.84822566]
[1642981089774,0.04035807,2532.5,2532.2,2.14822566]
[1642981089973,0.04035807,2532.5,2532.3,0.00477085]
[1642981090173,0.04035807,2532.5,2532.2,2.14822566]
[1642981090375,0.13819996,2533.0,2532.2,2.14822566]
[1642981091181,0.13819996,2533.0,2532.6,1.49459778]
[1642981091479,0.13819996,2533.0,2532.6,1.79459778]
[1642981091678,0.03414,2533.6,2532.6,2.09459778]
[1642981091881,0.03414,2533.6,2532.7,0.01810807]
[1642981092081,0.04661072,2533.6,2532.7,0.01810807]
[1642981092280,0.04661072,2533.6,2532.7,0.1579]
[1642981092477,0.04661072,2533.6,2532.7,1.1579]
[1642981092928,0.04661072,2533.6,2532.7,0.1579]
[1642981093124,0.03074072,2533.6,2532.7,1.1579]
[1642981093325,0.03074072,2533.6,2532.7,0.1579]
[1642981093524,0.03074072,2533.6,2532.7,0.3]
[1642981093722,0.03074072,2533.6,2532.2,1.22084881]
[1642981093923,0.03074072,2533.6,2532.3,0.1579]
[1642981094529,0.03074072,2533.6,2532.0,1.8003]
[1642981094730,0.03074072,2533.6,2532.7,1.19402586]
[1642981095535,0.03074072,2533.6,2532.7,1.79402586]
[1642981097376,0.03074072,2533.6,2532.5,0.1579]
[1642981097576,0.06600642,2533.5,2532.0,1.3882]
[1642981097775,0.06600642,2533.5,2532.0,1.2303]
[1642981098180,0.03074072,2533.6,2532.0,1.2303]
[1642981098375,0.03074072,2533.6,2532.4,1.16592434]
[1642981098776,0.03074072,2533.6,2532.5,0.3]
[1642981098979,0.03074072,2533.6,2532.5,0.4579]
[1642981099575,0.03074072,2533.6,2533.1,1.40235601]
[1642981099774,0.03074072,2533.6,2532.5,0.4579]
[1642981100421,0.27001544,2534.1,2532.6,4.0]
[1642981100624,0.27001544,2534.1,2532.7,1.0]
[1642981100825,0.27001544,2534.1,2533.0,1.23669774]
[1642981101024,0.27001544,2534.1,2533.0,1.53669774]
[1642981101228,0.27001544,2534.1,2533.0,1.83669774]
[1642981101826,5.5375,2534.6,2533.0,1.83669774]
[1642981101827,6.63142771,2535.0,2533.1,0.0100784]
[1642981102033,8.27313994,2535.4,2533.0,1.90705324]
[1642981102034,7.0109,2534.9,2533.2,0.48630088]
[1642981102229,7.0109,2534.9,2533.3,0.474]
[1642981102425,3.686,2534.9,2534.1,1.11181311]
[1642981102626,6.7563,2535.3,2534.1,1.41181311]
[1642981102627,4.6186,2535.3,2534.1,1.41181311]
[1642981102835,0.97986394,2535.5,2534.2,0.3]
[1642981103029,0.92986394,2535.5,2534.2,0.3]
[1642981103230,0.92986394,2535.5,2534.3,0.1577]
[1642981103628,0.92986394,2535.5,2534.7,1.47349838]
[1642981103928,0.91779989,2535.5,2534.7,1.47349838]
[1642981104226,0.01283972,2536.2,2534.8,0.1577]
[1642981104410,0.01283972,2536.2,2534.9,0.474]
[1642981104709,3.05856558,2536.8,2536.2,1.37590839]
[1642981104916,0.13759083,2536.0,2535.3,0.474]
[1642981105118,0.91779989,2536.9,2536.3,1.44578554]
[1642981105314,7.43,2537.6,2535.4,7.05]
[1642981105315,1.38176076,2538.0,2535.8,0.01291866]
[1642981105511,0.01218943,2538.1,2536.4,0.0127491]
[1642981105711,6.61851196,2539.0,2537.0,0.0127445]
[1642981105916,6.61851196,2539.0,2537.1,0.48579369]
[1642981106115,0.01226671,2538.6,2538.0,1.47090535]
[1642981106309,0.92237161,2538.5,2537.3,1.77441862]
[1642981106507,0.01226671,2538.6,2537.4,0.1575]
[1642981106707,0.01226671,2538.6,2537.5,0.474]
[1642981107010,0.27001544,2538.9,2537.6,0.1575]
[1642981107207,0.27001544,2538.9,2537.6,0.9315]
[1642981107408,0.27001544,2538.9,2537.7,0.00638449]
[1642981107613,0.01230249,2539.2,2537.7,0.00638449]
[1642981107614,0.08326381,2538.3,2537.8,0.6315]
[1642981107813,0.08326381,2538.3,2537.7,1.0]
[1642981108028,0.08326381,2538.3,2537.5,1.61925411]
[1642981108432,0.08326381,2538.3,2537.5,1.91925411]
[1642981108830,0.08326381,2538.3,2537.5,0.3147]
[1642981109033,0.01224277,2538.0,2537.5,0.3147]
[1642981109431,0.02142156,2537.9,2536.3,0.01201157]
[1642981109633,0.0120867,2537.4,2535.8,0.1575]
[1642981109834,0.0120867,2537.4,2536.3,1.25816441]
[1642981110034,0.0120867,2537.4,2536.3,2.68952842]
[1642981110239,0.19628,2538.1,2536.3,2.68952842]
[1642981110240,13.97325181,2538.2,2536.3,2.68952842]
[1642981110436,0.01299274,2537.5,2536.3,1.25816441]
[1642981111042,0.08326381,2538.3,2536.9,1.24704022]
[1642981111241,0.08326381,2538.3,2536.6,0.01229641]
[1642981112007,0.08326381,2538.3,2535.6,0.01842011]
[1642981112008,0.8425,2535.7,2535.6,0.01842011]
[1642981112303,7.0,2537.7,2535.8,1.68499999]
[1642981112304,0.01793535,2537.0,2535.8,1.68499999]
[1642981112501,0.474,2536.9,2535.8,1.68499999]
[1642981112701,0.02285094,2536.8,2535.8,1.68499999]
[1642981113306,0.14441848,2537.1,2535.8,1.68499999]
[1642981113708,0.14441848,2537.1,2535.9,0.3]
[1642981114012,0.14441848,2537.1,2535.8,1.68499999]
[1642981114207,0.14441848,2537.1,2535.9,1.2814178]
[1642981114406,0.14441848,2537.1,2535.9,1.5814178]
[1642981114606,0.14441848,2537.1,2535.9,2.5814178]
[1642981115009,0.14441848,2537.1,2535.9,1.3]
[1642981115210,1.14421,2537.0,2535.8,1.68499999]
[1642981115440,0.01692744,2536.9,2535.8,1.68499999]
[1642981115632,0.0127664,2536.5,2535.8,0.31649999]
[1642981115830,0.1575,2536.4,2535.8,0.31649999]
[1642981116033,7.0,2536.3,2535.2,0.1575]
[1642981116233,0.01883086,2536.1,2535.2,0.1575]
[1642981116431,0.01534809,2535.9,2535.2,0.1575]
[1642981117239,0.01655006,2535.9,2535.2,0.1575]
[1642981117443,0.0575,2536.0,2535.2,0.1575]
[1642981117942,0.0575,2536.0,2534.9,0.77807892]
[1642981118139,0.0575,2536.0,2534.9,0.3]
[1642981118339,0.1575,2536.5,2534.8,1.43964979]
[1642981118540,1.14444,2536.5,2534.6,0.00638449]
[1642981118745,0.01213297,2536.0,2534.6,0.00638449]
[1642981118944,0.64236157,2535.9,2534.6,0.00638449]
[1642981119180,0.6317,2535.9,2534.6,0.00638449]
[1642981119379,1.2204,2535.8,2534.6,0.00638449]
[1642981119581,0.1577,2535.7,2534.6,0.00638449]
[1642981119780,0.1577,2535.7,2534.5,1.48888837]
[1642981120179,0.1577,2535.7,2534.0,0.01221111]
[1642981120384,0.1577,2535.7,2534.1,0.00638449]
[1642981120385,0.474,2535.6,2534.1,0.00638449]
[1642981120580,0.01055445,2535.5,2534.1,0.00638449]
[1642981120781,5.583,2535.6,2534.1,0.00638449]
[1642981120984,0.1577,2535.5,2534.1,0.00638449]
[1642981121384,0.1577,2535.5,2534.6,1.38942082]
[1642981121685,1.15134449,2535.8,2534.2,0.01212856]
[1642981121881,5.4471,2535.7,2534.2,0.01212856]
[1642981122089,5.4471,2535.7,2534.4,1.44633124]
[1642981122283,8.5019,2535.8,2534.8,1.54745144]
[1642981122284,1.1391,2535.8,2534.8,1.54745144]
[1642981122488,3.9464,2536.2,2535.2,0.3]
[1642981122685,3.9464,2536.2,2534.9,0.1577]
[1642981122944,0.03496428,2537.0,2534.9,0.1577]
[1642981122945,0.13181548,2537.1,2535.4,0.01248574]
[1642981123136,0.13181548,2537.1,2536.0,1.2783061]
[1642981123336,0.13181548,2537.1,2536.0,1.8783061]
[1642981123737,0.11614027,2537.1,2536.0,1.8783061]
[1642981123936,3.66534027,2537.3,2536.0,1.8783061]
[1642981124138,3.66534027,2537.3,2536.4,1.19565061]
[1642981124342,0.1575,2537.2,2536.4,1.19565061]
[1642981124536,0.1575,2537.2,2536.0,0.01246914]
[1642981124742,0.1575,2537.2,2535.6,0.1575]
[1642981124743,1.15706995,2537.2,2535.6,0.1575]
[1642981124944,1.15706995,2537.2,2535.3,0.01288098]
[1642981124945,0.01689165,2537.1,2535.3,0.01288098]
[1642981125139,0.0124398,2536.6,2534.8,0.1577]
[1642981125340,0.1577,2536.5,2534.8,0.1577]
[1642981125540,0.1577,2536.5,2535.4,1.36358891]
[1642981125739,0.0124398,2536.6,2535.4,1.36358891]
[1642981126138,0.0124398,2536.6,2535.1,0.01215895]
[1642981126539,0.15063976,2536.6,2534.9,0.3]
[1642981126774,0.15063976,2536.6,2534.8,0.1577]
[1642981126775,0.6317,2536.5,2534.8,0.1577]
[1642981126994,0.01255402,2536.0,2534.8,0.1577]
[1642981127177,1.6187723,2535.9,2534.8,0.1577]
[1642981127385,1.6187723,2535.9,2534.9,0.01278217]
[1642981127386,0.1577,2535.9,2534.9,0.01278217]
[1642981127583,3.6867,2536.4,2535.0,0.1577]
[1642981127778,3.6867,2536.4,2534.9,0.01278217]
[1642981127779,0.1577,2536.3,2534.9,0.01278217]
[1642981128379,1.15730638,2536.3,2534.6,0.1577]
[1642981128579,1.15730638,2536.3,2534.5,1.13543698]
[1642981128580,1.9741924,2536.1,2534.5,1.13543698]
[1642981128781,0.01293511,2535.7,2534.5,1.13543698]
[1642981128980,0.1577,2535.6,2534.5,1.13543698]
[1642981129488,0.1577,2535.6,2534.1,0.00638449]
[1642981129682,0.02893981,2535.5,2534.1,0.00638449]
[1642981129881,0.00836375,2535.3,2534.1,0.00638449]
[1642981130082,0.1577,2535.4,2534.1,0.00638449]
[1642981130282,0.01293511,2535.7,2534.1,0.00638449]
[1642981130283,0.1577,2535.6,2534.1,0.00638449]
[1642981130530,0.1577,2535.6,2534.5,1.33343608]
[1642981130729,0.1577,2535.6,2534.1,0.00638449]
[1642981131128,2.17003678,2535.6,2534.1,0.00638449]
[1642981131729,0.98727,2535.3,2534.1,0.00638449]
[1642981131930,0.1577,2535.2,2534.1,0.00638449]
[1642981132332,0.45488711,2535.2,2534.1,0.00638449]
[1642981132630,0.45771023,2535.2,2534.1,0.00638449]
[1642981133030,0.45771023,2535.2,2534.6,1.25957605]
[1642981133228,0.45771023,2535.2,2534.1,0.00638449]
[1642981133837,0.009127,2535.3,2533.6,0.1577]
[1642981134037,0.1577,2535.2,2533.3,0.1577]
[1642981134284,0.1577,2535.2,2533.4,1.33341312]
[1642981134285,0.99606251,2535.0,2533.4,1.33341312]
[1642981134488,0.1577,2534.9,2533.7,1.21518908]
[1642981134687,5.0,2535.2,2533.8,0.1577]
[1642981135081,5.0,2535.2,2533.8,0.2281424]
[1642981135282,5.0,2535.2,2533.8,0.1577]
[1642981135480,5.0,2535.2,2534.4,1.16433864]
[1642981135883,5.0,2535.2,2533.8,1.1577]
[1642981136881,0.9872695,2535.0,2533.8,1.1577]
[1642981137083,0.9872695,2535.0,2533.8,1.0]
[1642981137287,1.01933045,2535.0,2533.8,2.11247616]
[1642981137683,1.01933045,2535.0,2533.8,1.11247616]
[1642981137918,1.01933045,2535.0,2533.8,2.11247616]
[1642981138119,1.0181134,2535.0,2533.8,1.41247616]
[1642981138420,1.0181134,2535.0,2533.8,1.71247616]
[1642981138620,1.0181134,2535.0,2533.8,0.6]
[1642981138822,1.9749,2534.9,2533.8,0.3]
[1642981139022,0.1577,2534.8,2533.4,0.3]
[1642981139224,0.1577,2534.8,2533.2,0.73819997]
[1642981139426,0.9874464,2534.6,2533.2,0.43819997]
[1642981139624,0.01568615,2534.5,2533.2,1.59550378]
[1642981139829,0.9874464,2534.6,2533.6,1.19496852]
[1642981140023,0.9874464,2534.6,2533.2,1.43819997]
[1642981140225,1.11053318,2534.6,2533.3,5.05]
[1642981140428,3.4315,2535.1,2533.7,0.0125491]
[1642981140825,5.0,2535.2,2533.8,0.01010007]
[1642981141026,5.0,2535.2,2534.4,0.01236013]
[1642981141228,5.0,2535.2,2534.7,1.22055626]
[1642981141689,4.8,2535.2,2535.1,1.55277898]
[1642981141885,0.45771023,2535.4,2535.2,7.0]
[1642981142082,0.1577,2536.5,2535.4,0.03116929]
[1642981142282,0.13819996,2536.6,2535.4,0.474]
[1642981142488,0.13819996,2536.6,2535.5,0.01089714]
[1642981142682,0.9863651,2537.3,2536.1,1.30419776]
[1642981142886,0.1577,2537.4,2536.1,1.30419776]
[1642981143086,0.1577,2537.4,2536.1,1.90419776]
[1642981144286,0.1575,2537.5,2536.1,1.90419776]
[1642981144886,0.01229405,2537.4,2536.1,1.90419776]
[1642981145092,0.1575,2537.3,2536.1,1.90419776]
[1642981145732,0.66855344,2537.3,2536.7,1.50718126]
[1642981146133,0.66855344,2537.3,2536.2,1.0]
[1642981146333,0.66855344,2537.3,2535.9,0.6]
[1642981146533,0.51105344,2537.3,2535.9,0.4575]
[1642981147131,0.51105344,2537.3,2536.5,1.1886441]
[1642981148736,0.51105344,2537.3,2536.5,1.7886441]
[1642981149185,0.51105344,2537.3,2536.6,0.1575]
[1642981149377,0.51105344,2537.3,2536.5,1.7886441]
[1642981149579,0.51105344,2537.3,2536.6,0.1575]
[1642981149981,0.46105344,2537.3,2536.6,0.1575]
[1642981150584,0.46105344,2537.3,2536.5,0.3]
[1642981150782,0.46105344,2537.3,2536.9,1.10005993]
[1642981150983,0.46105344,2537.3,2536.4,0.774]
[1642981151386,0.46105344,2537.3,2536.4,1.074]
[1642981151789,0.46105344,2537.3,2536.4,0.474]
[1642981151997,0.01257334,2537.0,2535.3,3.71755602]
[1642981152196,0.00730485,2536.8,2535.3,3.71755602]
[1642981152394,0.1577,2536.7,2535.3,3.71755602]
[1642981152785,0.01049786,2536.6,2535.3,3.71755602]
[1642981153036,0.1577,2536.5,2535.3,3.71755602]
[1642981153228,0.1577,2536.6,2535.3,3.71755602]
[1642981153428,0.1577,2536.6,2535.4,1.0]
[1642981153628,0.1577,2536.6,2535.3,3.71755602]
[1642981154634,0.1577,2536.6,2535.3,3.73012454]
[1642981154835,0.1577,2536.6,2535.3,4.03012454]
[1642981155033,0.1577,2536.6,2535.4,1.0]
[1642981155233,3.6651,2536.7,2535.4,1.0]
[1642981155234,3.8228,2536.7,2535.4,1.0]
[1642981155836,3.8228,2536.7,2535.3,3.73012454]
[1642981156240,0.03559035,2536.3,2535.3,3.57935605]
[1642981156448,1.9739422,2536.0,2535.3,3.57935605]
[1642981156678,0.1577,2535.9,2535.3,3.57935605]
[1642981157082,0.01257887,2535.7,2535.0,0.04]
[1642981157280,0.01257887,2535.7,2533.8,0.207]
[1642981157281,7.0,2535.1,2533.8,0.207]
[1642981157581,0.0417748,2534.9,2533.8,0.207]
[1642981158188,0.1577,2535.0,2534.0,1.28102936]
[1642981158389,0.55332422,2535.2,2534.1,0.1703392]
[1642981158984,0.55332422,2535.2,2534.4,1.36391158]
[1642981160428,0.55332422,2535.2,2534.1,0.0126392]
[1642981161831,0.55332422,2535.2,2534.3,1.48563083]
[1642981162029,0.55332422,2535.2,2534.3,2.08563083]
[1642981163029,0.55332422,2535.2,2534.7,1.55163584]
[1642981163439,0.55332422,2535.2,2534.8,0.1577]
[1642981164036,2.422e-05,2535.2,2534.8,1.1577]
[1642981164279,0.15143229,2536.4,2534.9,7.0]
[1642981164480,3.9265,2536.7,2535.4,0.0126085]
[1642981164682,3.80333377,2537.2,2535.6,0.02696185]
[1642981164683,3.949,2537.2,2535.6,0.02696185]
[1642981164879,3.6355,2537.1,2535.7,0.1577]
[1642981165081,3.6355,2537.1,2535.6,0.1577]
[1642981165278,3.6355,2537.1,2535.7,1.2975601]
[1642981165476,3.6355,2537.1,2535.7,1.5975601]
[1642981165477,3.7932,2537.1,2535.7,1.5975601]
[1642981165676,3.6355,2537.1,2535.7,1.8975601]
[1642981166478,3.6355,2537.1,2535.7,1.6]
[1642981166679,0.17018015,2537.0,2535.7,0.3]
[1642981166989,0.17018015,2537.0,2535.3,0.1577]
[1642981167185,0.17018015,2537.0,2534.5,0.1577]
[1642981167186,0.01225287,2536.4,2534.5,0.1577]
[1642981167380,0.01225287,2536.4,2534.4,0.474]
[1642981167381,0.16642304,2536.3,2534.2,4.39417782]
[1642981167580,0.1577,2536.3,2535.0,1.34563806]
[1642981167779,5.51905287,2536.4,2535.0,1.34563806]
[1642981167780,5.67675287,2536.4,2535.0,1.34563806]
[1642981168040,5.5068,2536.4,2535.0,1.34563806]
[1642981168443,0.13819996,2536.5,2535.2,0.01271197]
[1642981168748,0.13819996,2536.5,2535.3,0.1577]
[1642981169640,0.13819996,2536.5,2535.9,1.09891697]
[1642981170046,0.13819996,2536.5,2535.9,1.69891697]